Workbook

Sheet Лист1
A1: Школа | C1: МБОУ "Большемеминская СОШ" | F1: Утвердил: | G1: должность | H1: директор
A2: Типовое примерное меню приготавливаемых блюд | G2: фамилия | H2: Т.А. Федорова
A3: Возрастная категория | E3: 7-11 лет | G3: дата | I3: Сентябрь | J3: 2025
H4: день | I4: месяц | J4: год
A5: Неделя | B5: День недели | C5: Прием пищи | D5: Раздел меню | E5: Блюда | F5: Вес блюда, г | G5: Белки | H5: Жиры | I5: Углеводы | J5: Калорийность | K5: № рецептуры | L5: Цена
A6: 1 | B6: 1 | C6: Завтрак | D6: гор.блюдо
D7: гор.блюдо
D8: гор.напиток
D9: хлеб
D10: фрукты
D11: закуска
D13: итого | F13: =SUM(F6:F12) -> 0 | G13: =SUM(G5:G12) -> 0.000 | H13: =SUM(H5:H12) -> 0.000 | I13: =SUM(I5:I12) -> 0.000 | J13: =SUM(J5:J12) -> 0
A14: =A6 -> 1 | B14: =B6 -> 1 | C14: Обед | D14: закуска | E14: Салат из моркови | F14: 60 | G14: 0.702 | H14: 3.051 | I14: 6.720 | J14: 58 | K14: №71/2015 г Дели
D15: 1 блюдо
D16: 2 блюдо | E16: Тефтели куриные "Лакомка" в соусе для запекания | F16: 90 | G16: 9.268 | H16: 11.111 | I16: 5.217 | J16: 158 | K16: ТТК 2020 г
D17: гарнир | E17: Каша гречневая рассыпчатая | F17: 150 | G17: 6.622 | H17: 5.599 | I17: 35.675 | J17: 212 | K17: №302/2015г,Дели
D18: напиток | E18: Напиток из вишни | F18: 200 | G18: 0.120 | H18: 0.030 | I18: 11.570 | J18: 48 | K18: ТТК №2694 от 14.09.2023 г
D20: хлеб | E20: Хлеб ржано-пшеничный/ Хлеб пшеничный | F20: 40 | G20: 2.520 | H20: 0.360 | I20: 18.840 | J20: 91
D21: фрукты | E21: Плоды и ягоды свежие (яблоки) | F21: 100 | G21: 0.400 | H21: 0.400 | I21: 9.800 | J21: 47 | K21: №338 Дели 2015г
D23: итого | F23: =SUM(F14:F22) -> 640 | G23: =SUM(G14:G22) -> 19.632 | H23: 20.551 | I23: 87.822 | J23: 614 | L23: 74.77
A24: =A6 -> 1 | B24: =B6 -> 1 | C24: Итого за день: | F24: =F13+F23 -> 640 | G24: =G13+G23 -> 19.632 | H24: 20.551 | I24: 87.822 | J24: 614 | L24: =L13+L23 -> 74.77
A25: 1 | B25: 2 | C25: Завтрак | D25: гор.блюдо
D26: гор.блюдо
D27: гор.напиток
D28: хлеб
D30: закуска
D32: итого
A33: =A25 -> 1 | B33: =B25 -> 2 | C33: Обед | D33: закуска | E33: Салат из свеклы отварной (с маслом) | F33: 60 | G33: 0.855 | H33: 3.653 | I33: 5.016 | J33: 56 | K33: №52/2015 Дели
D34: 1 блюдо
D35: 2 блюдо | E35: Фрикассе из куриных грудок | F35: 90 | G35: 8.026 | H35: 9.076 | I35: 1.236 | J35: 119 | K35: ТТК июль 2021г
D36: гарнир | E36: Каша рисовая вязкая | F36: 150 | G36: 4.303 | H36: 6.129 | I36: 28.944 | J36: 188 | K36: №303/2015г,Дели
D37: напиток | E37: Напиток яблочный | F37: 200 | G37: 0.100 | H37: 0.100 | I37: 12.430 | J37: 52 | K37: №701 Сбор. рецеп. 2004г
D38: хлеб | E38: Хлеб ржано-пшеничный/ Хлеб пшеничный | F38: 40 | G38: 2.520 | H38: 0.360 | I38: 18.840 | J38: 91
D42: итого | F42: =SUM(F33:F41) -> 540 | G42: =SUM(G33:G41) -> 15.804 | H42: 19.318 | I42: 66.466 | J42: 506 | L42: 74.77
A43: =A25 -> 1 | B43: =B25 -> 2 | C43: Итого за день: | F43: =F32+F42 -> 540 | G43: =G32+G42 -> 15.804 | H43: 19.318 | I43: 66.466 | J43: 506 | L43: 74.77
A44: 1 | B44: 3 | C44: Завтрак | D44: гор.блюдо
D45: гор.блюдо
D46: гор.напиток
D47: хлеб
D48: фрукты
D49: закуска
D51: итого
A52: =A44 -> 1 | B52: =B44 -> 3 | C52: Обед | D52: закуска | E52: Овощи натуральные свежие (огурцы) | F52: 60 | G52: 0.420 | H52: 0.060 | I52: 1.140 | J52: 7 | K52: №71/2015 г Дели
D53: 1 блюдо
D54: 2 блюдо | E54: Сосиски отварные с соусом для запекания | F54: 90 | G54: 8.916 | H54: 9.543 | I54: 8.758 | J54: 157 | K54: №243/2015 Дели
D55: гарнир | E55: Макаронные изделия отварные | F55: 150 | G55: 5.602 | H55: 5.068 | I55: 35.906 | J55: 212 | K55: №309/2015г Дели
D56: напиток | E56: Напиток из шиповника | F56: 200 | G56: 0.012 | H56: 0.001 | I56: 10.178 | J56: 41 | K56: ТТК от 2021 г
D57: хлеб | E57: Хлеб ржано-пшеничный/ Хлеб пшеничный | F57: 40 | G57: 2.520 | H57: 0.360 | I57: 18.840 | J57: 91
D59: фрукты | E59: Плоды и ягоды свежие (яблоки) | F59: 100 | G59: 0.400 | H59: 0.400 | I59: 9.800 | J59: 47 | K59: №338 Дели 2015г
D61: итого | F61: =SUM(F52:F60) -> 640 | G61: =SUM(G52:G60) -> 17.87 | H61: 15.432 | I61: 84.622 | J61: 555 | L61: 74.77
A62: =A44 -> 1 | B62: =B44 -> 3 | C62: Итого за день: | F62: =F51+F61 -> 640 | G62: =G51+G61 -> 17.87 | H62: 15.432 | I62: 84.622 | J62: 555 | L62: 74.77
A63: 1 | B63: 4 | C63: Завтрак | D63: гор.блюдо
D65: гор.напиток
D66: хлеб
D68: закуска
D69: конд. изд.
D70: итого
A71: =A63 -> 1 | B71: =B63 -> 4 | C71: Обед | D71: закуска | E71: Салат из белокочанной капусты | F71: 60 | G71: 0.931 | H71: 3.051 | I71: 5.645 | J71: 54 | K71: №45/2015г,Дели
D72: 1 блюдо
D73: 2 блюдо | E73: Плов с говядиной | F73: 190 | G73: 13.404 | H73: 14.443 | I73: 35.065 | J73: 324 | K73: ТТК 2021г
D74: гарнир
D75: напиток | E75: Чай с сахаром | F75: 208 | G75: 0.011 | H75: 0.007 | I75: 7.998 | J75: 32 | K75: ТТК от 2021г
D76: хлеб | E76: Хлеб ржано-пшеничный/ Хлеб пшеничный | F76: 45 | G76: 2.770 | H76: 0.410 | I76: 21.090 | J76: 102
D78: конд. изд. | E78: Печенье весовое 3 шт | F78: 9.6 | G78: 0.662 | H78: 1.325 | I78: 7.114 | J78: 43 | K78: ТТК(Акт19.09.2018г)
D80: итого | F80: =SUM(F71:F79) -> 512.6 | G80: =SUM(G71:G79) -> 17.778 | H80: 19.236 | I80: 76.912 | J80: 555 | L80: 74.77
A81: =A63 -> 1 | B81: =B63 -> 4 | C81: Итого за день: | F81: =F70+F80 -> 512.6 | G81: =G70+G80 -> 17.778 | H81: 19.236 | I81: 76.912 | J81: 555 | L81: 74.77
A82: 1 | B82: 5 | C82: Завтрак | D82: гор.блюдо
D83: гор.блюдо
D84: гор.напиток
D85: хлеб
D87: закуска
D88: конд. изд.
D89: итого
A90: =A82 -> 1 | B90: =B82 -> 5 | C90: Обед | D90: закуска | E90: Салат из моркови | F90: 60 | G90: 0.702 | H90: 3.051 | I90: 6.720 | J90: 58 | K90: №71/2015 г Дели
D91: 1 блюдо
D92: 2 блюдо | E92: Фрикассе из куриных грудок | F92: 90 | G92: 8.026 | H92: 9.076 | I92: 1.236 | J92: 119 | K92: ТТК июль 2021г
D93: гарнир | E93: Макаронные изделия отварные | F93: 150 | G93: 5.602 | H93: 5.068 | I93: 35.906 | J93: 212 | K93: №309/2015г Дели
D94: напиток | E94: Напиток из вишни | F94: 200 | G94: 0.120 | H94: 0.030 | I94: 11.570 | J94: 48 | K94: ТТК №2694 от 14.09.2023г
D95: хлеб | E95: Хлеб ржано-пшеничный/ Хлеб пшеничный | F95: 40 | G95: 2.520 | H95: 0.360 | I95: 18.840 | J95: 91
D97: конд. изд. | E97: Вафли весовые 1 шт/ | F97: 21 | G97: 2.750 | H97: 2.500 | I97: 13.000 | J97: 86
D99: итого | F99: =SUM(F90:F98) -> 561 | G99: =SUM(G90:G98) -> 19.72 | H99: 20.085 | I99: 87.272 | J99: 614 | L99: 74.77
A100: =A82 -> 1 | B100: =B82 -> 5 | C100: Итого за день: | F100: =F89+F99 -> 561 | G100: =G89+G99 -> 19.72 | H100: 20.085 | I100: 87.272 | J100: 614 | L100: =L89+L99 -> 74.77
A101: 1 | B101: 6 | C101: Завтрак | D101: гор.блюдо
D103: гор.напиток
D104: хлеб
D105: фрукты
D106: закуска
D108: итого
A109: =A101 -> 1 | B109: 6 | C109: Обед | D109: закуска | E109: Овощные палочки из огурцов | F109: 60 | G109: 0.420 | H109: 0.060 | I109: 1.140 | J109: 7 | K109: ТТК №1444 от 28.05.2021г
D110: 1 блюдо
D111: 2 блюдо | E111: Пельмени "Для умников и умниц" отварные с соус. для запекания | F111: 180 | G111: 16.544 | H111: 19.086 | I111: 39.317 | J111: 400 | K111: ТТК 2015г
D112: гарнир
D113: напиток | E113: Чай с сахаром, лимоном | F113: 213 | G113: 0.056 | H113: 0.012 | I113: 8.148 | J113: 34 | K113: ТТК от 2021г
D114: хлеб | E114: Хлеб ржано-пшеничный/ Хлеб пшеничный | F114: 40 | G114: 2.520 | H114: 0.360 | I114: 18.840 | J114: 91
D115: фрукты | E115: Плоды и ягоды свежие (яблоки) | F115: 100 | G115: 0.400 | H115: 0.400 | I115: 9.800 | J115: 47 | K115: №338 Дели 2015г
D118: итого | F118: =SUM(F109:F117) -> 593 | G118: =SUM(G109:G117) -> 19.94 | H118: 19.918 | I118: 77.245 | J118: 579 | L118: 74.77
A119: =A101 -> 1 | B119: =B101 -> 6 | C119: Итого за день: | F119: =F108+F118 -> 593 | G119: =G108+G118 -> 19.940 | H119: 19.918 | I119: 77.245 | J119: 579 | L119: =L108+L118 -> 74.77
A120: 2 | B120: 1 | C120: Завтрак | D120: гор.блюдо
D121: гор.блюдо
D122: гор.напиток
D123: хлеб
D125: закуска
D127: итого | F127: =SUM(F120:F126) -> 0 | G127: =SUM(G120:G126) -> 0.000 | H127: =SUM(H120:H126) -> 0.000 | I127: =SUM(I120:I126) -> 0.000 | J127: =SUM(J120:J126) -> 0
A128: =A120 -> 2 | B128: =B120 -> 1 | C128: Обед | D128: закуска | E128: Салат из моркови | F128: 60 | G128: 0.702 | H128: 3.051 | I128: 6.720 | J128: 58 | K128: №71/2015 г Дели
D129: 1 блюдо
D130: 2 блюдо | E130: Гуляш из говядины | F130: 90 | G130: 10.575 | H130: 11.910 | I130: 2.561 | J130: 160 | K130: №260/2015г Дели
D131: гарнир | E131: Макаронные изделия отварные | F131: 150 | G131: 5.602 | H131: 5.068 | I131: 35.906 | J131: 212 | K131: №309/2015г Дели
D132: напиток | E132: Напиток из урюка | F132: 200 | G132: 0.800 | H132: 0.064 | I132: 9.460 | J132: 42 | K132: ТТК №2693 от 14.09.2023г
D133: хлеб. | E133: Хлеб ржано-пшеничный/ Хлеб пшеничный | F133: 40 | G133: 2.520 | H133: 0.360 | I133: 18.840 | J133: 91
D137: итого | F137: =SUM(F128:F136) -> 540 | G137: =SUM(G128:G136) -> 20.199 | H137: 20.453 | I137: 73.487 | J137: 563 | L137: 74.77
A138: =A120 -> 2 | B138: =B120 -> 1 | C138: Итого за день: | F138: =F127+F137 -> 540 | G138: =G127+G137 -> 20.199 | H138: 20.453 | I138: 73.487 | J138: 563 | L138: 74.77
A139: 2 | B139: 2 | C139: Завтрак | D139: гор.блюдо
D141: гор.напиток
D142: хлеб
D144: закуска
D145: конд. изд.
D146: итого
A147: =A139 -> 2 | B147: =B139 -> 2 | C147: Обед | D147: закуска
D148: 1 блюдо
D149: 2 блюдо | E149: Жаркое из птицы (грудки куриные) | F149: 190 | G149: 13.354 | H149: 13.713 | I149: 31.248 | J149: 302 | K149: ТТК 2023г
D150: гарнир
D151: напиток | E151: Чай с сахаром, лимоном | F151: 213 | G151: 0.056 | H151: 0.012 | I151: 8.148 | J151: 34 | K151: ТТК от 2021г
D152: хлеб | E152: Хлеб ржано-пшеничный/ Хлеб пшеничный | F152: 40 | G152: 2.520 | H152: 0.360 | I152: 18.840 | J152: 91
D154: конд. изд. | E154: Вафли весовые 1 шт | F154: 21 | G154: 2.750 | H154: 2.500 | I154: 13.000 | J154: 86
D156: итого | F156: =SUM(F147:F155) -> 464 | G156: =SUM(G147:G155) -> 18.68 | H156: 16.585 | I156: 71.236 | J156: 513 | L156: 74.77
A157: =A139 -> 2 | B157: =B139 -> 2 | C157: Итого за день: | F157: =F146+F156 -> 464 | G157: =G146+G156 -> 18.68 | H157: 16.585 | I157: 71.236 | J157: 513 | L157: 74.77
A158: 2 | B158: 3 | C158: Завтрак | D158: гор.блюдо
D160: гор.напиток
D161: хлеб
D162: фрукты
D163: закуска
D165: итого | F165: =SUM(F158:F164) -> 0 | G165: =SUM(G158:G164) -> 0.000 | H165: =SUM(H158:H164) -> 0.000 | I165: 0.000 | J165: 0
A166: =A158 -> 2 | B166: =B158 -> 3 | C166: Обед | D166: закуска | E166: Салат из свеклы отварной (с маслом) | F166: 60 | G166: 0.855 | H166: 3.653 | I166: 5.016 | J166: 56 | K166: №52/2015 Дели
D167: 1 блюдо
D168: 2 блюдо | E168: Пельмени "Для умников и умниц" отварные с маслом | F168: 165 | G168: 13.864 | H168: 12.563 | I168: 39.419 | J168: 326 | K168: ТТК 2015г
D169: гарнир
D170: напиток | E170: Напиток из урюка | F170: 200 | G170: 0.800 | H170: 0.064 | I170: 9.460 | J170: 42 | K170: ТТК №2693 от 14.09.2023г
D171: хлеб | E171: Хлеб ржано-пшеничный/ Хлеб пшеничный | F171: 40 | G171: 2.520 | H171: 0.360 | I171: 18.840 | J171: 91
D172: фрукты | E172: Плоды и ягоды свежие (яблоки) | F172: 100 | G172: 0.400 | H172: 0.400 | I172: 9.800 | J172: 47 | K172: №338 Дели 2015г
D175: итого | F175: =SUM(F166:F174) -> 565 | G175: =SUM(G166:G174) -> 18.439 | H175: 17.04 | I175: 82.535 | J175: 562 | L175: 74.77
A176: =A158 -> 2 | B176: =B158 -> 3 | C176: Итого за день: | F176: =F165+F175 -> 565 | G176: =G165+G175 -> 18.439 | H176: 17.04 | I176: 82.535 | J176: 562 | L176: 74.77
A177: 2 | B177: 4 | C177: Завтрак | D177: гор.блюдо
D178: гор.блюдо
D179: гор.напиток
D180: хлеб
D182: закуска
D184: итого
A185: =A177 -> 2 | B185: =B177 -> 4 | C185: Обед | D185: закуска | E185: Овощи натуральные свежие (помидоры) | F185: 60 | G185: 0.660 | H185: 0.120 | I185: 2.280 | J185: 14 | K185: №71/2015 г Дели
D186: 1 блюдо
D187: 2 блюдо | E187: Фрикассе из куриных грудок | F187: 90 | G187: 8.026 | H187: 9.076 | I187: 1.236 | J187: 119 | K187: ТТК июль 2021г
D188: гарнир | E188: Каша гречневая рассыпчатая | F188: 150 | G188: 6.622 | H188: 5.599 | I188: 35.675 | J188: 212 | K188: №302/2015г,Дели
D189: напиток | E189: Компот из замороженной компотной смеси | F189: 200 | G189: 0.135 | H189: 0.023 | I189: 11.150 | J189: 46 | K189: ТТК от 2021г
D190: хлеб | E190: Хлеб ржано-пшеничный/ Хлеб пшеничный | F190: 40 | G190: 2.520 | H190: 0.360 | I190: 18.840 | J190: 91
D194: итого | F194: =SUM(F185:F193) -> 540 | G194: =SUM(G185:G193) -> 17.963 | H194: =SUM(H185:H193) -> 15.178 | I194: 69.181 | J194: 482 | L194: 74.77
A195: =A177 -> 2 | B195: =B177 -> 4 | C195: Итого за день: | F195: =F184+F194 -> 540 | G195: =G184+G194 -> 17.963 | H195: 15.178 | I195: 69.181 | J195: 482 | L195: =L184+L194 -> 74.77
A196: 2 | B196: 5 | C196: Завтрак | D196: гор.блюдо
D197: гор.блюдо
D198: гор.напиток
D199: хлеб
D201: закуска
D203: итого | F203: =SUM(F196:F202) -> 0 | G203: =SUM(G196:G202) -> 0 | H203: =SUM(H196:H202) -> 0.000 | I203: 0.000 | J203: 0
A204: =A196 -> 2 | B204: =B196 -> 5 | C204: Обед | D204: закуска | E204: Салат из свежих огурцов | F204: 60 | G204: 0.399 | H204: 3.653 | I204: 1.083 | J204: 39 | K204: №720/2015 г Дели
D205: 1 блюдо
D206: 2 блюдо | E206: Тефтели куриные "Лакомка" в соусе для запекания | F206: 90 | G206: 9.268 | H206: 11.111 | I206: 5.217 | J206: 158 | K206: ТТК 2020 г
D207: гарнир | E207: Макаронные изделия отварные | F207: 150 | G207: 5.602 | H207: 5.068 | I207: 35.906 | J207: 212 | K207: №309/2015г Дели
D208: напиток | E208: Напиток из вишни | F208: 200 | G208: 0.120 | H208: 0.030 | I208: 11.570 | J208: 48 | K208: ТТК №2694 от 14.09.2023 г
D209: хлеб | E209: Хлеб ржано-пшеничный/ Хлеб пшеничный | F209: 40 | G209: 2.520 | H209: 0.360 | I209: 18.840 | J209: 91
D213: итого | F213: =SUM(F204:F212) -> 540 | G213: =SUM(G204:G212) -> 17.909 | H213: 20.222 | I213: 72.616 | J213: 548 | L213: 74.77
A214: =A196 -> 2 | B214: =B196 -> 5 | C214: Итого за день: | F214: =F203+F213 -> 540 | G214: =G203+G213 -> 17.909 | H214: 20.222 | I214: 72.616 | J214: 548 | L214: 74.77
A215: 2 | B215: 6 | C215: Завтрак | D215: гор.блюдо
D216: гор.блюдо
D217: гор.напиток
D218: хлеб
D219: фрукты
D222: итого | F222: =SUM(F215:F221) -> 0 | G222: =SUM(G215:G221) -> 0.000 | H222: =SUM(H215:H221) -> 0 | I222: =SUM(I215:I221) -> 0.000 | J222: =SUM(J215:J221) -> 0
A223: =A215 -> 2 | B223: 6 | C223: Обед | D223: закуска
D224: 1 блюдо
D225: 2 блюдо | E225: Сосиски отварные с соусом для запекания с овощами натуральными свежими (огурцами) | F225: 130 | G225: 9.196 | H225: 9.583 | I225: 9.518 | J225: 161 | K225: №243/2015 Дели
D226: гарнир | E226: Рис отварной | F226: 150 | G226: 4.303 | H226: 5.129 | I226: 28.944 | J226: 179 | K226: №304/2015г,Дели
D227: напиток | E227: Чай с сахаром | F227: 208 | G227: 0.011 | H227: 0.007 | I227: 7.998 | J227: 32 | K227: ТТК 2021г
D228: хлеб | E228: Хлеб ржано-пшеничный/ Хлеб пшеничный | F228: 40 | G228: 2.520 | H228: 0.360 | I228: 18.840 | J228: 91
D229: фрукты | E229: Плоды и ягоды свежие (яблоки) | F229: 100 | G229: 0.400 | H229: 0.400 | I229: 9.800 | J229: 47 | K229: №338 Дели 2015г
D232: итого | F232: =SUM(F223:F231) -> 628 | G232: =SUM(G223:G231) -> 16.43 | H232: 15.479 | I232: 75.1 | J232: 510 | L232: 74.77
A233: =A215 -> 2 | B233: =B215 -> 6 | C233: Итого за день: | F233: =F222+F232 -> 628 | G233: =G222+G232 -> 16.43 | H233: 15.479 | I233: 75.1 | J233: 510 | L233: 74.77
C234: Среднее значение за период: | F234: =(F233+F214+F195+F176+F157+F138+F119+F100+F81+F62+F43+F24)/12 -> 564 | G234: =(G233+G214+G195+G176+G157+G138+G119+G100+G81+G62+G43+G24)/12 -> 18.364 | H234: =(H233+H214+H195+H176+H157+H138+H119+H100+H81+H62+H43+H24)/12 -> 18.291 | I234: =(I233+I214+I195+I176+I157+I138+I119+I100+I81+I62+I43+I24)/12 -> 77.041 | J234: =(J233+J214+J195+J176+J157+J138+J119+J100+J81+J62+J43+J24)/12 -> 550 | L234: 74.77
